[Event "Titled Tuesday Blitz May 2 Late 2023"]
[White "Prydun, Andriy"]
[Black "Kim, Sergey"]
[WhiteFideId "14145898"]
[BlackFideId "13700570"]
[WhiteElo "2164"]
[BlackElo "2295"]
[Result "0-1"]
[Round "05"]
[TimeControl "180+2"]
[Date "2023.05.02"]
[WhiteClock "0:00:04"]
[BlackClock "0:00:26"]

1. e4 {[%clk 0:03:00]}  e5 {[%clk 0:02:56]} 2. Nf3 {[%clk 0:03:01]}  Nc6 {[%clk 0:02:55]} 3. Nc3 {[%clk 0:02:54]}  Nf6 {[%clk 0:02:51]} 4. d4 {[%clk 0:02:54]}  exd4 {[%clk 0:02:50]} 5. Nxd4 {[%clk 0:02:55]}  Bb4 {[%clk 0:02:49]} 6. Nxc6 {[%clk 0:02:55]}  bxc6 {[%clk 0:02:47]} 7. Bd3 {[%clk 0:02:56]}  d5 {[%clk 0:02:48]} 8. O-O {[%clk 0:02:42]}  Bxc3 {[%clk 0:02:40]} 9. bxc3 {[%clk 0:02:43]}  dxe4 {[%clk 0:02:40]} 10. Bc4 {[%clk 0:02:02]}  O-O {[%clk 0:02:34]} 11. Bg5 {[%clk 0:02:01]}  Qd6 {[%clk 0:02:22]} 12. Qd4 {[%clk 0:01:09]}  c5 {[%clk 0:02:17]} 13. Qxd6 {[%clk 0:01:05]}  cxd6 {[%clk 0:02:17]} 14. Bxf6 {[%clk 0:01:05]}  gxf6 {[%clk 0:02:16]} 15. Rfd1 {[%clk 0:01:03]}  Rd8 {[%clk 0:02:13]} 16. Rd2 {[%clk 0:00:53]}  Be6 {[%clk 0:01:56]} 17. Be2 {[%clk 0:00:38]}  d5 {[%clk 0:01:51]} 18. f3 {[%clk 0:00:08]}  f5 {[%clk 0:01:50]} 19. Kf2 {[%clk 0:00:06]}  Rab8 {[%clk 0:01:48]} 20. Ke3 {[%clk 0:00:05]}  Kg7 {[%clk 0:01:36]} 21. h3 {[%clk 0:00:05]}  Kf6 {[%clk 0:01:34]} 22. g4 {[%clk 0:00:02]}  Ke5 {[%clk 0:01:31]} 23. f4+ {[%clk 0:00:02]}  Kf6 {[%clk 0:01:31]} 24. g5+ {[%clk 0:00:03]}  Ke7 {[%clk 0:01:31]} 25. h4 {[%clk 0:00:03]}  Rb2 {[%clk 0:01:25]} 26. h5 {[%clk 0:00:03]}  Rdb8 {[%clk 0:01:16]} 27. Rg1 {[%clk 0:00:03]}  Rb1 {[%clk 0:01:15]} 28. Rdd1 {[%clk 0:00:03]}  Rxd1 {[%clk 0:01:14]} 29. Rxd1 {[%clk 0:00:04]}  Rb2 {[%clk 0:01:12]} 30. Rc1 {[%clk 0:00:03]}  Rxa2 {[%clk 0:01:12]} 31. Bb5 {[%clk 0:00:02]}  a6 {[%clk 0:01:08]} 32. Be2 {[%clk 0:00:02]}  Ra4 {[%clk 0:01:07]} 33. Kd2 {[%clk 0:00:02]}  d4 {[%clk 0:01:07]} 34. cxd4 {[%clk 0:00:02]}  cxd4 {[%clk 0:01:06]} 35. Rb1 {[%clk 0:00:03]}  Ra2 {[%clk 0:01:04]} 36. Rb7+ {[%clk 0:00:02]}  Kd8 {[%clk 0:01:03]} 37. Rb6 {[%clk 0:00:01]}  d3 {[%clk 0:01:02]} 38. Bd1 {[%clk 0:00:02]}  dxc2 {[%clk 0:00:51]} 39. Bxc2 {[%clk 0:00:02]}  a5 {[%clk 0:00:51]} 40. g6 {[%clk 0:00:02]}  hxg6 {[%clk 0:00:50]} 41. h6 {[%clk 0:00:02]}  Ra3 {[%clk 0:00:46]} 42. Bb3 {[%clk 0:00:01]}  Ra1 {[%clk 0:00:43]} 43. h7 {[%clk 0:00:01]}  Rh1 {[%clk 0:00:43]} 44. Bxe6 {[%clk 0:00:02]}  Rxh7 {[%clk 0:00:41]} 45. Bd5 {[%clk 0:00:02]}  Ke7 {[%clk 0:00:37]} 46. Ra6 {[%clk 0:00:02]}  Rh3 {[%clk 0:00:33]} 47. Ra7+ {[%clk 0:00:02]}  Kd6 {[%clk 0:00:32]} 48. Bxf7 {[%clk 0:00:02]}  Rg3 {[%clk 0:00:30]} 49. Rxa5 {[%clk 0:00:02]}  Ke7 {[%clk 0:00:29]} 50. Bc4 {[%clk 0:00:01]}  Rg4 {[%clk 0:00:27]} 51. Ra6 {[%clk 0:00:02]}  Kf8 {[%clk 0:00:26]} 52. Rf6+ {[%clk 0:00:02]}  Kg7 {[%clk 0:00:26]} 53. Rf7+ {[%clk 0:00:02]}  Kh6 {[%clk 0:00:26]} 54. Ke3 {[%clk 0:00:03]}  Rg3+ {[%clk 0:00:26]} 55. Ke2 {[%clk 0:00:03]}  Rf3 {[%clk 0:00:26]} 56. Rf6 {[%clk 0:00:04]}  Rxf4 {[%clk 0:00:26]} 57. Bf7 {[%clk 0:00:04]}  Rg4 {[%clk 0:00:26]} 58. Ke3 {[%clk 0:00:04]}  Kg7 {[%clk 0:00:26]} 0-1


[Site "https://www.chess.com"]

[Event "Titled Tuesday Blitz May 2 Late 2023"]
[White "Vaglio Munoz, Jaime"]
[Black "Dobrowolski, Piotr"]
[WhiteFideId "6500145"]
[BlackFideId "1106236"]
[WhiteElo "2199"]
[BlackElo "2320"]
[Result "1-0"]
[Round "05"]
[TimeControl "180+2"]
[Date "2023.05.02"]
[WhiteClock "0:00:45"]
[BlackClock "0:00:15"]

1. Nf3 {[%clk 0:03:00]}  Nf6 {[%clk 0:02:58]} 2. c4 {[%clk 0:02:58]}  g6 {[%clk 0:02:57]} 3. b3 {[%clk 0:02:58]}  Bg7 {[%clk 0:02:56]} 4. Bb2 {[%clk 0:02:58]}  O-O {[%clk 0:02:56]} 5. g3 {[%clk 0:02:59]}  a5 {[%clk 0:02:56]} 6. a3 {[%clk 0:02:57]}  c6 {[%clk 0:02:56]} 7. Bg2 {[%clk 0:02:56]}  d5 {[%clk 0:02:56]} 8. cxd5 {[%clk 0:02:51]}  cxd5 {[%clk 0:02:55]} 9. d3 {[%clk 0:02:48]}  Na6 {[%clk 0:02:51]} 10. O-O {[%clk 0:02:47]}  Bg4 {[%clk 0:02:40]} 11. Nbd2 {[%clk 0:02:46]}  Bxf3 {[%clk 0:02:31]} 12. Nxf3 {[%clk 0:02:45]}  e6 {[%clk 0:02:30]} 13. Rc1 {[%clk 0:02:43]}  Qb6 {[%clk 0:02:24]} 14. Bd4 {[%clk 0:02:40]}  Qd6 {[%clk 0:02:24]} 15. Ra1 {[%clk 0:02:29]}  Nh5 {[%clk 0:02:21]} 16. Bxg7 {[%clk 0:02:27]}  Nxg7 {[%clk 0:02:22]} 17. Qd2 {[%clk 0:02:27]}  Nc5 {[%clk 0:02:14]} 18. Qb2 {[%clk 0:02:24]}  Qb6 {[%clk 0:02:04]} 19. Rab1 {[%clk 0:02:19]}  Rfc8 {[%clk 0:01:58]} 20. Rfc1 {[%clk 0:02:12]}  Nf5 {[%clk 0:01:52]} 21. h4 {[%clk 0:02:08]}  h5 {[%clk 0:01:03]} 22. b4 {[%clk 0:01:54]}  axb4 {[%clk 0:00:59]} 23. axb4 {[%clk 0:01:55]}  Nd7 {[%clk 0:00:57]} 24. Bh3 {[%clk 0:01:43]}  Nxg3 {[%clk 0:00:54]} 25. Kg2 {[%clk 0:01:33]}  Nf5 {[%clk 0:00:49]} 26. Bxf5 {[%clk 0:01:32]}  exf5 {[%clk 0:00:49]} 27. Qd4 {[%clk 0:01:19]}  Qxd4 {[%clk 0:00:46]} 28. Nxd4 {[%clk 0:01:20]}  Kg7 {[%clk 0:00:44]} 29. Kf3 {[%clk 0:01:18]}  Kf6 {[%clk 0:00:41]} 30. Ke3 {[%clk 0:01:16]}  Ne5 {[%clk 0:00:37]} 31. f4 {[%clk 0:01:13]}  Ng4+ {[%clk 0:00:28]} 32. Kf3 {[%clk 0:01:08]}  Ke7 {[%clk 0:00:26]} 33. b5 {[%clk 0:01:05]}  Nf6 {[%clk 0:00:22]} 34. b6 {[%clk 0:01:04]}  Kd7 {[%clk 0:00:22]} 35. Nb5 {[%clk 0:01:00]}  Ne8 {[%clk 0:00:20]} 36. Na7 {[%clk 0:00:59]}  Rxc1 {[%clk 0:00:19]} 37. Rxc1 {[%clk 0:01:00]}  Rb8 {[%clk 0:00:17]} 38. e4 {[%clk 0:00:59]}  fxe4+ {[%clk 0:00:17]} 39. dxe4 {[%clk 0:01:00]}  dxe4+ {[%clk 0:00:17]} 40. Kxe4 {[%clk 0:01:01]}  Nd6+ {[%clk 0:00:16]} 41. Kd5 {[%clk 0:01:00]}  Ne8 {[%clk 0:00:13]} 42. Rd1 {[%clk 0:00:59]}  Rd8 {[%clk 0:00:13]} 43. Kc5+ {[%clk 0:00:54]}  Ke7 {[%clk 0:00:12]} 44. Re1+ {[%clk 0:00:53]}  Kf6 {[%clk 0:00:12]} 45. Nb5 {[%clk 0:00:53]}  Ng7 {[%clk 0:00:12]} 46. Nc7 {[%clk 0:00:52]}  Ne6+ {[%clk 0:00:12]} 47. Nxe6 {[%clk 0:00:51]}  fxe6 {[%clk 0:00:13]} 48. Re5 {[%clk 0:00:46]}  Rd5+ {[%clk 0:00:11]} 49. Rxd5 {[%clk 0:00:45]}  exd5 {[%clk 0:00:12]} 50. Kxd5 {[%clk 0:00:46]}  Kf5 {[%clk 0:00:13]} 51. Kd6 {[%clk 0:00:44]}  Kxf4 {[%clk 0:00:14]} 52. Kc7 {[%clk 0:00:44]}  g5 {[%clk 0:00:14]} 53. Kxb7 {[%clk 0:00:44]}  gxh4 {[%clk 0:00:13]} 54. Ka7 {[%clk 0:00:45]}  h3 {[%clk 0:00:14]} 55. b7 {[%clk 0:00:45]}  h2 {[%clk 0:00:15]} 56. b8=Q+ {[%clk 0:00:45]}  Kg4 {[%clk 0:00:14]} 57. Qxh2 {[%clk 0:00:46]}  h4 {[%clk 0:00:15]} 58. Kb6 {[%clk 0:00:45]} 1-0


[Site "https://www.chess.com"]

[Event "Titled Tuesday Blitz May 2 Late 2023"]
[White "Lopez Del Alamo, Antonio"]
[Black "Prem, Pranav"]
[WhiteFideId "2227339"]
[BlackFideId "30901057"]
[WhiteElo "2175"]
[BlackElo "1970"]
[Result "1-0"]
[Round "05"]
[TimeControl "180+2"]
[Date "2023.05.02"]
[WhiteClock "0:00:10"]
[BlackClock "0:00:02"]

1. e4 {[%clk 0:02:59]}  e6 {[%clk 0:02:55]} 2. d3 {[%clk 0:02:57]}  d5 {[%clk 0:02:41]} 3. Nd2 {[%clk 0:02:53]}  Nf6 {[%clk 0:02:41]} 4. Ngf3 {[%clk 0:02:52]}  c5 {[%clk 0:02:41]} 5. g3 {[%clk 0:02:52]}  Nc6 {[%clk 0:02:41]} 6. Bg2 {[%clk 0:02:52]}  Be7 {[%clk 0:02:32]} 7. O-O {[%clk 0:02:52]}  O-O {[%clk 0:02:32]} 8. e5 {[%clk 0:02:52]}  Nd7 {[%clk 0:02:32]} 9. Re1 {[%clk 0:02:53]}  Re8 {[%clk 0:02:25]} 10. h4 {[%clk 0:02:51]}  f6 {[%clk 0:02:25]} 11. exf6 {[%clk 0:02:47]}  Bxf6 {[%clk 0:02:26]} 12. Nf1 {[%clk 0:02:28]}  Nf8 {[%clk 0:02:09]} 13. c3 {[%clk 0:02:27]}  e5 {[%clk 0:02:08]} 14. Ne3 {[%clk 0:02:07]}  Be6 {[%clk 0:01:56]} 15. Ng5 {[%clk 0:02:03]}  Ne7 {[%clk 0:00:57]} 16. Nxe6 {[%clk 0:01:56]}  Nxe6 {[%clk 0:00:58]} 17. Qb3 {[%clk 0:01:55]}  Nc7 {[%clk 0:00:25]} 18. Qxb7 {[%clk 0:01:31]}  Qd6 {[%clk 0:00:19]} 19. Qb3 {[%clk 0:01:29]}  Kh8 {[%clk 0:00:17]} 20. Qc2 {[%clk 0:01:24]}  Rab8 {[%clk 0:00:17]} 21. Ng4 {[%clk 0:01:19]}  Nc6 {[%clk 0:00:15]} 22. Nxf6 {[%clk 0:01:17]}  Qxf6 {[%clk 0:00:16]} 23. Bg5 {[%clk 0:01:11]}  Qd6 {[%clk 0:00:14]} 24. Rab1 {[%clk 0:01:09]}  h6 {[%clk 0:00:14]} 25. Bd2 {[%clk 0:01:06]}  Ne6 {[%clk 0:00:14]} 26. Re2 {[%clk 0:01:01]}  Rf8 {[%clk 0:00:12]} 27. Rbe1 {[%clk 0:01:01]}  Rf6 {[%clk 0:00:08]} 28. Be3 {[%clk 0:00:58]}  Rbf8 {[%clk 0:00:08]} 29. Qa4 {[%clk 0:00:58]}  Rg6 {[%clk 0:00:05]} 30. Qb3 {[%clk 0:00:39]}  Rd8 {[%clk 0:00:02]} 31. a3 {[%clk 0:00:31]}  Ne7 {[%clk 0:00:02]} 32. Bh3 {[%clk 0:00:25]}  Nc6 {[%clk 0:00:02]} 33. Qa4 {[%clk 0:00:24]}  Nf4 {[%clk 0:00:02]} 34. Bxf4 {[%clk 0:00:22]}  exf4 {[%clk 0:00:02]} 35. Re6 {[%clk 0:00:19]}  Rxe6 {[%clk 0:00:01]} 36. Rxe6 {[%clk 0:00:20]}  Qb8 {[%clk 0:00:01]} 37. Qxc6 {[%clk 0:00:17]}  fxg3 {[%clk 0:00:01]} 38. Rxh6+ {[%clk 0:00:10]}  gxh6 {[%clk 0:00:02]} 1-0


[Site "https://www.chess.com"]

[Event "Titled Tuesday Blitz May 2 Late 2023"]
[White "Romero Ruscalleda, Josep"]
[Black "Tomaszewski, Kacper"]
[WhiteFideId "2231859"]
[BlackFideId "1127373"]
[WhiteElo "2183"]
[BlackElo "2211"]
[Result "1/2-1/2"]
[Round "05"]
[TimeControl "180+2"]
[Date "2023.05.02"]
[WhiteClock "0:00:53"]
[BlackClock "0:00:43"]

1. e4 {[%clk 0:03:00]}  Nc6 {[%clk 0:02:59]} 2. d4 {[%clk 0:03:00]}  d6 {[%clk 0:02:57]} 3. Nc3 {[%clk 0:02:59]}  Nf6 {[%clk 0:02:57]} 4. Nf3 {[%clk 0:02:57]}  g6 {[%clk 0:02:57]} 5. h3 {[%clk 0:02:56]}  Bg7 {[%clk 0:02:56]} 6. Bg5 {[%clk 0:02:55]}  h6 {[%clk 0:02:54]} 7. Bh4 {[%clk 0:02:54]}  O-O {[%clk 0:02:50]} 8. Qd2 {[%clk 0:02:53]}  a6 {[%clk 0:02:50]} 9. Bd3 {[%clk 0:02:43]}  b5 {[%clk 0:02:47]} 10. a3 {[%clk 0:02:42]}  Rb8 {[%clk 0:02:43]} 11. O-O {[%clk 0:02:41]}  e5 {[%clk 0:02:22]} 12. dxe5 {[%clk 0:02:26]}  Nxe5 {[%clk 0:02:21]} 13. Nxe5 {[%clk 0:02:24]}  dxe5 {[%clk 0:02:21]} 14. Nd5 {[%clk 0:02:20]}  g5 {[%clk 0:02:19]} 15. Nxf6+ {[%clk 0:02:20]}  Qxf6 {[%clk 0:02:17]} 16. Bg3 {[%clk 0:02:19]}  Rd8 {[%clk 0:02:16]} 17. Qe2 {[%clk 0:02:15]}  c5 {[%clk 0:02:12]} 18. c3 {[%clk 0:02:12]}  c4 {[%clk 0:02:11]} 19. Bc2 {[%clk 0:02:11]}  Be6 {[%clk 0:01:59]} 20. Rfd1 {[%clk 0:02:08]}  Bf8 {[%clk 0:01:58]} 21. Rxd8 {[%clk 0:02:05]}  Rxd8 {[%clk 0:01:58]} 22. Rd1 {[%clk 0:02:05]}  Rxd1+ {[%clk 0:01:51]} 23. Qxd1 {[%clk 0:02:05]}  Bc5 {[%clk 0:01:51]} 24. Qd2 {[%clk 0:01:58]}  Kg7 {[%clk 0:01:49]} 25. Kh2 {[%clk 0:01:54]}  h5 {[%clk 0:01:44]} 26. f3 {[%clk 0:01:53]}  h4 {[%clk 0:01:42]} 27. Bf2 {[%clk 0:01:45]}  Bxf2 {[%clk 0:01:34]} 28. Qxf2 {[%clk 0:01:45]}  Qf4+ {[%clk 0:01:34]} 29. g3 {[%clk 0:01:39]}  hxg3+ {[%clk 0:01:27]} 30. Qxg3 {[%clk 0:01:38]}  Qd2+ {[%clk 0:01:25]} 31. Qg2 {[%clk 0:01:39]}  Qxg2+ {[%clk 0:01:19]} 32. Kxg2 {[%clk 0:01:38]}  Kh6 {[%clk 0:01:18]} 33. Kg3 {[%clk 0:01:38]}  Kh5 {[%clk 0:01:14]} 34. a4 {[%clk 0:01:37]}  Bd7 {[%clk 0:01:12]} 35. axb5 {[%clk 0:01:37]}  axb5 {[%clk 0:01:11]} 36. b3 {[%clk 0:01:35]}  Be6 {[%clk 0:01:08]} 37. bxc4 {[%clk 0:01:27]}  Bxc4 {[%clk 0:01:09]} 38. Bd1 {[%clk 0:01:27]}  Kg6 {[%clk 0:01:07]} 39. h4 {[%clk 0:01:23]}  gxh4+ {[%clk 0:01:07]} 40. Kxh4 {[%clk 0:01:23]}  f5 {[%clk 0:01:08]} 41. exf5+ {[%clk 0:01:20]}  Kxf5 {[%clk 0:01:09]} 42. Kg3 {[%clk 0:01:21]}  Bd3 {[%clk 0:01:09]} 43. Bb3 {[%clk 0:01:19]}  Kg5 {[%clk 0:01:05]} 44. Bd5 {[%clk 0:01:18]}  Bc4 {[%clk 0:01:03]} 45. Be4 {[%clk 0:01:15]}  Kf6 {[%clk 0:00:59]} 46. f4 {[%clk 0:01:15]}  exf4+ {[%clk 0:01:00]} 47. Kxf4 {[%clk 0:01:15]}  Ke6 {[%clk 0:01:00]} 48. Bf3 {[%clk 0:01:13]}  Bd5 {[%clk 0:00:56]} 49. Be2 {[%clk 0:01:11]}  Bc6 {[%clk 0:00:56]} 50. Ke3 {[%clk 0:01:09]}  Ke5 {[%clk 0:00:56]} 51. Kd3 {[%clk 0:01:09]}  Be4+ {[%clk 0:00:53]} 52. Kd2 {[%clk 0:01:09]}  Bc6 {[%clk 0:00:53]} 53. Kc2 {[%clk 0:01:07]}  Kd6 {[%clk 0:00:51]} 54. Kb3 {[%clk 0:01:05]}  Kc5 {[%clk 0:00:48]} 55. Bd3 {[%clk 0:01:03]}  Bd5+ {[%clk 0:00:47]} 56. Kb2 {[%clk 0:01:01]}  Bc4 {[%clk 0:00:47]} 57. Be4 {[%clk 0:01:01]}  Kd6 {[%clk 0:00:47]} 58. Bg6 {[%clk 0:01:00]}  Ke5 {[%clk 0:00:47]} 59. Ka3 {[%clk 0:01:00]}  Kd5 {[%clk 0:00:44]} 60. Kb4 {[%clk 0:01:00]}  Kc6 {[%clk 0:00:45]} 61. Be8+ {[%clk 0:00:59]}  Kb6 {[%clk 0:00:45]} 62. Bd7 {[%clk 0:00:59]}  Be2 {[%clk 0:00:44]} 63. Be8 {[%clk 0:00:57]}  Bf1 {[%clk 0:00:44]} 64. Bd7 {[%clk 0:00:57]}  Bc4 {[%clk 0:00:45]} 65. Be8 {[%clk 0:00:56]}  Bf1 {[%clk 0:00:45]} 66. Bf7 {[%clk 0:00:54]}  Bc4 {[%clk 0:00:41]} 67. Bxc4 {[%clk 0:00:53]}  bxc4 {[%clk 0:00:41]} 68. Kxc4 {[%clk 0:00:53]}  Kc6 {[%clk 0:00:42]} 69. Kd4 {[%clk 0:00:53]}  Kd6 {[%clk 0:00:43]} 70. c4 {[%clk 0:00:53]}  Kc6 {[%clk 0:00:43]} 1/2-1/2


[Site "https://www.chess.com"]

[Event "Titled Tuesday Blitz May 2 Late 2023"]
[White "Yeritsyan, Hayk"]
[Black "Senft, Sean"]
[WhiteFideId "13307320"]
[BlackFideId "2044960"]
[WhiteElo "2241"]
[BlackElo "1989"]
[Result "1-0"]
[Round "05"]
[TimeControl "180+2"]
[Date "2023.05.02"]
[WhiteClock "0:01:36"]
[BlackClock "0:00:01"]

1. d4 {[%clk 0:03:00]}  d5 {[%clk 0:02:59]} 2. Nf3 {[%clk 0:03:00]}  Nf6 {[%clk 0:02:59]} 3. e3 {[%clk 0:02:59]}  c6 {[%clk 0:03:00]} 4. Bd3 {[%clk 0:03:00]}  Bg4 {[%clk 0:03:00]} 5. Nbd2 {[%clk 0:03:00]}  e6 {[%clk 0:03:01]} 6. c3 {[%clk 0:03:01]}  Nbd7 {[%clk 0:03:01]} 7. e4 {[%clk 0:03:01]}  dxe4 {[%clk 0:03:02]} 8. Nxe4 {[%clk 0:03:02]}  Nxe4 {[%clk 0:03:02]} 9. Bxe4 {[%clk 0:03:03]}  Nf6 {[%clk 0:03:03]} 10. Bd3 {[%clk 0:03:03]}  Bd6 {[%clk 0:03:03]} 11. Bg5 {[%clk 0:03:03]}  h6 {[%clk 0:03:03]} 12. Bh4 {[%clk 0:03:03]}  g5 {[%clk 0:03:03]} 13. Bg3 {[%clk 0:03:03]}  Bxg3 {[%clk 0:03:04]} 14. hxg3 {[%clk 0:03:03]}  Nd5 {[%clk 0:03:04]} 15. Be2 {[%clk 0:03:00]}  Qb6 {[%clk 0:02:57]} 16. Qb3 {[%clk 0:02:59]}  Qxb3 {[%clk 0:02:57]} 17. axb3 {[%clk 0:03:00]}  Bxf3 {[%clk 0:02:57]} 18. Bxf3 {[%clk 0:03:00]}  Kd7 {[%clk 0:02:54]} 19. b4 {[%clk 0:02:58]}  a6 {[%clk 0:02:37]} 20. Ke2 {[%clk 0:02:58]}  Rae8 {[%clk 0:02:35]} 21. Kd3 {[%clk 0:02:55]}  Kd6 {[%clk 0:02:11]} 22. Rh5 {[%clk 0:02:43]}  e5 {[%clk 0:02:10]} 23. dxe5+ {[%clk 0:02:44]}  Rxe5 {[%clk 0:02:09]} 24. Rah1 {[%clk 0:02:45]}  Re6 {[%clk 0:02:06]} 25. Bxd5 {[%clk 0:02:45]}  cxd5 {[%clk 0:02:00]} 26. Rxg5 {[%clk 0:02:45]}  Rf6 {[%clk 0:01:32]} 27. f3 {[%clk 0:02:44]}  Re8 {[%clk 0:01:29]} 28. Rgh5 {[%clk 0:02:37]}  Ree6 {[%clk 0:01:28]} 29. g4 {[%clk 0:02:35]}  Ke7 {[%clk 0:01:26]} 30. Rxd5 {[%clk 0:02:34]}  Kf8 {[%clk 0:01:25]} 31. Rd4 {[%clk 0:02:32]}  Kg7 {[%clk 0:01:24]} 32. Re4 {[%clk 0:02:32]}  Rd6+ {[%clk 0:01:24]} 33. Kc2 {[%clk 0:02:33]}  Rd7 {[%clk 0:01:24]} 34. Rd1 {[%clk 0:02:32]}  Rc7 {[%clk 0:01:23]} 35. Rd5 {[%clk 0:02:26]}  Rfc6 {[%clk 0:01:19]} 36. Red4 {[%clk 0:02:25]}  Re7 {[%clk 0:01:18]} 37. Kd2 {[%clk 0:02:24]}  Rce6 {[%clk 0:01:18]} 38. Kc2 {[%clk 0:02:22]}  Re2+ {[%clk 0:01:18]} 39. Rd2 {[%clk 0:02:23]}  Re1 {[%clk 0:01:16]} 40. Rd7 {[%clk 0:02:23]}  Rxd7 {[%clk 0:01:04]} 41. Rxd7 {[%clk 0:02:24]}  b5 {[%clk 0:01:04]} 42. Rd6 {[%clk 0:02:19]}  Re2+ {[%clk 0:01:04]} 43. Rd2 {[%clk 0:02:12]}  Re1 {[%clk 0:01:03]} 44. Kd3 {[%clk 0:02:06]}  Kf6 {[%clk 0:01:03]} 45. Kd4 {[%clk 0:02:07]}  Kg5 {[%clk 0:01:02]} 46. Kc5 {[%clk 0:02:04]}  Kf4 {[%clk 0:00:46]} 47. Kb6 {[%clk 0:02:04]}  Re6+ {[%clk 0:00:45]} 48. Ka5 {[%clk 0:02:03]}  Kg3 {[%clk 0:00:44]} 49. Rd7 {[%clk 0:02:00]}  Rf6 {[%clk 0:00:20]} 50. Rd2 {[%clk 0:01:42]}  Re6 {[%clk 0:00:17]} 51. b3 {[%clk 0:01:42]}  Rc6 {[%clk 0:00:17]} 52. Rc2 {[%clk 0:01:41]}  f6 {[%clk 0:00:16]} 53. c4 {[%clk 0:01:41]}  Re6 {[%clk 0:00:10]} 54. cxb5 {[%clk 0:01:38]}  axb5 {[%clk 0:00:09]} 55. Kxb5 {[%clk 0:01:39]}  Re3 {[%clk 0:00:05]} 56. Rb2 {[%clk 0:01:37]}  Re1 {[%clk 0:00:01]} 57. Kb6 {[%clk 0:01:36]} 1-0


[Site "https://www.chess.com"]

[Event "Titled Tuesday Blitz May 2 Late 2023"]
[White "Bogaudinov, Rushan"]
[Black "Guz, Ari"]
[WhiteFideId "4129288"]
[BlackFideId "2825759"]
[WhiteElo "1967"]
[BlackElo "2205"]
[Result "1-0"]
[Round "05"]
[TimeControl "180+2"]
[Date "2023.05.02"]
[WhiteClock "0:00:13"]
[BlackClock "0:00:52"]

1. e4 {[%clk 0:03:00]}  Nf6 {[%clk 0:02:51]} 2. e5 {[%clk 0:02:59]}  Nd5 {[%clk 0:02:52]} 3. Nf3 {[%clk 0:02:59]}  d6 {[%clk 0:02:52]} 4. d4 {[%clk 0:02:59]}  Bg4 {[%clk 0:02:50]} 5. h3 {[%clk 0:02:54]}  Bh5 {[%clk 0:02:47]} 6. Bc4 {[%clk 0:02:44]}  Nb6 {[%clk 0:02:46]} 7. Bb3 {[%clk 0:02:44]}  Nc6 {[%clk 0:02:45]} 8. e6 {[%clk 0:02:38]}  d5 {[%clk 0:02:41]} 9. exf7+ {[%clk 0:02:37]}  Bxf7 {[%clk 0:02:42]} 10. O-O {[%clk 0:02:35]}  e6 {[%clk 0:02:40]} 11. Ng5 {[%clk 0:02:22]}  Bd6 {[%clk 0:02:40]} 12. Nxf7 {[%clk 0:02:21]}  Kxf7 {[%clk 0:02:41]} 13. Nc3 {[%clk 0:02:14]}  Qf6 {[%clk 0:02:31]} 14. Be3 {[%clk 0:02:12]}  Rhf8 {[%clk 0:02:29]} 15. a4 {[%clk 0:02:11]}  Na5 {[%clk 0:02:24]} 16. Nb5 {[%clk 0:02:00]}  Kg8 {[%clk 0:02:17]} 17. Nxd6 {[%clk 0:01:51]}  cxd6 {[%clk 0:02:18]} 18. Qd2 {[%clk 0:01:44]}  Nbc4 {[%clk 0:02:06]} 19. Bxc4 {[%clk 0:01:28]}  Nxc4 {[%clk 0:02:07]} 20. Qe2 {[%clk 0:01:28]}  Rac8 {[%clk 0:01:54]} 21. c3 {[%clk 0:01:26]}  Qg6 {[%clk 0:01:47]} 22. a5 {[%clk 0:01:17]}  a6 {[%clk 0:01:37]} 23. Bc1 {[%clk 0:00:51]}  Rf6 {[%clk 0:01:17]} 24. b3 {[%clk 0:00:48]}  Nxa5 {[%clk 0:01:17]} 25. Rxa5 {[%clk 0:00:47]}  Rxc3 {[%clk 0:01:18]} 26. Be3 {[%clk 0:00:38]}  Rxb3 {[%clk 0:01:18]} 27. Rc1 {[%clk 0:00:33]}  h6 {[%clk 0:01:14]} 28. Ra2 {[%clk 0:00:31]}  Rb1 {[%clk 0:01:12]} 29. Rc2 {[%clk 0:00:27]}  Rxc1+ {[%clk 0:01:11]} 30. Rxc1 {[%clk 0:00:27]}  b5 {[%clk 0:01:11]} 31. Qa2 {[%clk 0:00:25]}  Qe4 {[%clk 0:01:10]} 32. Qxa6 {[%clk 0:00:21]}  Rg6 {[%clk 0:01:10]} 33. g4 {[%clk 0:00:16]}  Qf3 {[%clk 0:01:06]} 34. Rc8+ {[%clk 0:00:16]}  Kh7 {[%clk 0:01:06]} 35. Qa8 {[%clk 0:00:15]}  Rf6 {[%clk 0:01:02]} 36. Rh8+ {[%clk 0:00:15]}  Kg6 {[%clk 0:01:02]} 37. Qe8+ {[%clk 0:00:15]}  Rf7 {[%clk 0:01:03]} 38. Rf8 {[%clk 0:00:15]}  Qf6 {[%clk 0:00:58]} 39. h4 {[%clk 0:00:13]}  Qe7 {[%clk 0:00:51]} 40. h5+ {[%clk 0:00:13]}  Kf6 {[%clk 0:00:52]} 41. Rxf7+ {[%clk 0:00:13]}  Qxf7 {[%clk 0:00:52]} 42. g5+ {[%clk 0:00:13]}  hxg5 {[%clk 0:00:52]} 43. Bxg5+ {[%clk 0:00:13]} 1-0


[Site "https://www.chess.com"]

[Event "Titled Tuesday Blitz May 2 Late 2023"]
[White "Cruz, William Ferreira Da"]
[Black "Kula, Robert"]
[WhiteFideId "2118050"]
[BlackFideId "1101218"]
[WhiteElo "2223"]
[BlackElo "2180"]
[Result "1/2-1/2"]
[Round "05"]
[TimeControl "180+2"]
[Date "2023.05.02"]
[WhiteClock "0:01:02"]
[BlackClock "0:01:00"]

1. d4 {[%clk 0:03:00]}  d5 {[%clk 0:02:59]} 2. c4 {[%clk 0:03:00]}  c6 {[%clk 0:02:59]} 3. Nc3 {[%clk 0:02:59]}  Nf6 {[%clk 0:02:59]} 4. Nf3 {[%clk 0:02:59]}  g6 {[%clk 0:02:54]} 5. cxd5 {[%clk 0:02:58]}  cxd5 {[%clk 0:02:54]} 6. h3 {[%clk 0:02:58]}  Bg7 {[%clk 0:02:54]} 7. Bf4 {[%clk 0:02:58]}  O-O {[%clk 0:02:53]} 8. e3 {[%clk 0:02:58]}  Ne4 {[%clk 0:02:48]} 9. Qb3 {[%clk 0:02:48]}  Nxc3 {[%clk 0:02:45]} 10. Qxc3 {[%clk 0:02:47]}  Nc6 {[%clk 0:02:43]} 11. Be2 {[%clk 0:02:43]}  Bf5 {[%clk 0:02:43]} 12. O-O {[%clk 0:02:35]}  Qb6 {[%clk 0:02:42]} 13. Rfc1 {[%clk 0:02:08]}  Rac8 {[%clk 0:02:41]} 14. Qa3 {[%clk 0:02:07]}  Nb4 {[%clk 0:02:28]} 15. Rxc8 {[%clk 0:01:54]}  Rxc8 {[%clk 0:02:27]} 16. Rd1 {[%clk 0:01:53]}  Bf8 {[%clk 0:02:16]} 17. g4 {[%clk 0:01:46]}  Bc2 {[%clk 0:02:06]} 18. Rc1 {[%clk 0:01:44]}  e5 {[%clk 0:02:06]} 19. Nxe5 {[%clk 0:01:32]}  Nd3 {[%clk 0:01:54]} 20. Qxd3 {[%clk 0:01:31]}  Bxd3 {[%clk 0:01:52]} 21. Rxc8 {[%clk 0:01:31]}  Bxe2 {[%clk 0:01:37]} 22. Bh6 {[%clk 0:01:31]}  Qb4 {[%clk 0:01:21]} 23. Rxf8+ {[%clk 0:01:20]}  Qxf8 {[%clk 0:01:20]} 24. Bxf8 {[%clk 0:01:20]}  Kxf8 {[%clk 0:01:20]} 25. f3 {[%clk 0:01:15]}  f6 {[%clk 0:01:11]} 26. Kf2 {[%clk 0:01:15]}  Bb5 {[%clk 0:01:04]} 27. a4 {[%clk 0:01:14]}  fxe5 {[%clk 0:01:02]} 28. axb5 {[%clk 0:01:13]}  exd4 {[%clk 0:01:02]} 29. exd4 {[%clk 0:01:13]}  Ke7 {[%clk 0:01:03]} 30. f4 {[%clk 0:01:13]}  Kd7 {[%clk 0:01:02]} 31. f5 {[%clk 0:01:10]}  Kc7 {[%clk 0:01:02]} 32. fxg6 {[%clk 0:01:09]}  hxg6 {[%clk 0:01:02]} 33. h4 {[%clk 0:01:09]}  Kd6 {[%clk 0:01:01]} 34. Kf3 {[%clk 0:01:09]}  Ke6 {[%clk 0:01:01]} 35. Kf4 {[%clk 0:01:09]}  Kf6 {[%clk 0:01:01]} 36. h5 {[%clk 0:01:08]}  g5+ {[%clk 0:01:01]} 37. Ke3 {[%clk 0:01:08]}  b6 {[%clk 0:01:01]} 38. Kf3 {[%clk 0:01:02]}  Kg7 {[%clk 0:01:00]} 1/2-1/2


[Site "https://www.chess.com"]